fUSD/lending_fUSD_20260610
["ID","MTS","AMOUNT","RATE_DAILY","PERIOD"]
[424707816,1781068242000,-4893.38412864,0.00014988,2]
[424707813,1781068242000,-2695.294935,0.000149,2]
[424707802,1781068242000,-500.0,0.00014899,2]
[424707819,1781068242000,-151.0,0.00014997,2]
[424707817,1781068242000,-151.0,0.00014997,2]
[424707820,1781068242000,-500.0,0.00014997,2]
[424707822,1781068242000,-477.63805442,0.00014997,2]
[424707823,1781068242000,-500.0,0.00014997,2]
[424707825,1781068242000,-500.0,0.00014997,2]
[424707824,1781068242000,-500.0,0.00014997,2]
[424707826,1781068242000,-500.0,0.00014997,2]
[424707827,1781068242000,-500.0,0.00014997,2]
[424707829,1781068242000,-182.4905201,0.00014997,2]
[424707830,1781068242000,-695.44,0.00014997,2]
[424707764,1781068242000,-303.48980098,0.00014648,2]
[424707828,1781068242000,-500.0,0.00014997,2]
[424707821,1781068242000,-500.0,0.00014997,2]
[424707809,1781068242000,-10000.0,0.000149,2]
[424707814,1781068242000,-2042.56656922,0.000149,2]
[424707808,1781068242000,-4950.0476,0.000149,2]
[424707767,1781068242000,-433.0,0.00014678,2]
[424707810,1781068242000,-160.0,0.000149,2]
[424707770,1781068242000,-303.48980104,0.00014702,2]
[424707771,1781068242000,-445.0,0.00014709,2]
[424707775,1781068242000,-150.0,0.00014749,2]
[424707776,1781068242000,-278.37577561,0.00014749,2]
[424707769,1781068242000,-303.61066796,0.00014702,2]
[424707766,1781068242000,-6579.34637,0.00014668,2]
[424707772,1781068242000,-459.0,0.00014709,2]
[424707774,1781068242000,-150.0,0.00014749,2]
[424707773,1781068242000,-1464.85,0.00014744,2]
[424707777,1781068242000,-769.08,0.00014849,2]
[424707781,1781068242000,-500.0,0.00014849,2]
[424707768,1781068242000,-356.08507408,0.00014685,2]
[424707796,1781068242000,-151.0,0.0001485,2]
[424707797,1781068242000,-163.0,0.0001488,2]
[424707792,1781068242000,-488.04847065,0.00014849,2]
[424707788,1781068242000,-500.0,0.00014849,2]
[424707794,1781068242000,-234545.16555343,0.0001485,2]
[424707778,1781068242000,-500.0,0.00014849,2]
[424707782,1781068242000,-500.0,0.00014849,2]
[424707779,1781068242000,-640.46,0.00014849,2]
[424707786,1781068242000,-281.67279939,0.00014849,2]
[424707790,1781068242000,-500.0,0.00014849,2]
[424707783,1781068242000,-500.0,0.00014849,2]
[424707780,1781068242000,-500.0,0.00014849,2]
[424707784,1781068242000,-695.44,0.00014849,2]
[424707866,1781068243000,-769.08,0.00014999,2]
[424707865,1781068243000,-769.08,0.00014999,2]
[424707870,1781068243000,-769.12807872,0.00014999,2]
[424707867,1781068243000,-769.08,0.00014999,2]
[424707868,1781068243000,-769.08,0.00014999,2]
[424707886,1781068243000,-640.46,0.00014999,2]
[424707863,1781068243000,-769.08,0.00014999,2]
[424707864,1781068243000,-769.08,0.00014999,2]
[424707862,1781068243000,-769.08,0.00014999,2]
[424707871,1781068243000,-500.0,0.00014999,2]
[424707861,1781068243000,-769.08,0.00014999,2]
[424707869,1781068243000,-769.08,0.00014999,2]
[424707872,1781068243000,-500.0,0.00014999,2]
[424707881,1781068243000,-640.46,0.00014999,2]
[424707873,1781068243000,-500.0,0.00014999,2]
[424707874,1781068243000,-500.0,0.00014999,2]
[424707877,1781068243000,-640.46,0.00014999,2]
[424707876,1781068243000,-593.17756439,0.00014999,2]
[424707875,1781068243000,-500.0,0.00014999,2]
[424707879,1781068243000,-640.46,0.00014999,2]
[424707880,1781068243000,-640.46,0.00014999,2]
[424707878,1781068243000,-640.46,0.00014999,2]
[424707884,1781068243000,-640.46,0.00014999,2]
[424707883,1781068243000,-640.46,0.00014999,2]
[424707855,1781068243000,-769.08,0.00014999,2]
[424707882,1781068243000,-640.46,0.00014999,2]
[424707853,1781068243000,-151.0,0.00014998,2]
[424707832,1781068243000,-695.44,0.00014997,2]
[424707858,1781068243000,-769.08,0.00014999,2]
[424707889,1781068243000,-640.46,0.00014999,2]
[424707833,1781068243000,-695.44,0.00014997,2]
[424707834,1781068243000,-695.44,0.00014997,2]
[424707831,1781068243000,-695.44,0.00014997,2]
[424707835,1781068243000,-695.44,0.00014997,2]
[424707847,1781068243000,-746273.9216013,0.00014998,2]
[424707837,1781068243000,-500.0,0.00014997,2]
[424707836,1781068243000,-500.0,0.00014997,2]
[424707840,1781068243000,-500.0,0.00014997,2]
[424707845,1781068243000,-250.0,0.00014997,2]
[424707842,1781068243000,-500.0,0.00014997,2]
[424707846,1781068243000,-12646.1978569,0.00014998,2]
[424707852,1781068243000,-500.0,0.00014998,2]
[424707838,1781068243000,-524.15129187,0.00014997,2]
[424707844,1781068243000,-500.0,0.00014997,2]
[424707841,1781068243000,-500.0,0.00014997,2]
[424707839,1781068243000,-500.0,0.00014997,2]
[424707848,1781068243000,-3165.9930396,0.00014998,2]
[424707849,1781068243000,-676779.2038446,0.00014998,2]
[424707860,1781068243000,-769.08,0.00014999,2]
[424707850,1781068243000,-151.0,0.00014998,2]
[424707851,1781068243000,-151.0,0.00014998,2]
[424707859,1781068243000,-769.08,0.00014999,2]
[424707857,1781068243000,-769.08,0.00014999,2]
[424707854,1781068243000,-151.0,0.00014998,2]
[424707856,1781068243000,-769.08,0.00014999,2]
[424707843,1781068243000,-500.0,0.00014997,2]
[424707888,1781068243000,-640.46,0.00014999,2]
[424707885,1781068243000,-640.46,0.00014999,2]
[424707893,1781068243000,-500.0,0.00014999,2]
[424707926,1781068243000,-500.0,0.00014999,2]
[424707927,1781068243000,-500.0,0.00014999,2]
[424707920,1781068243000,-500.0,0.00014999,2]
[424707924,1781068243000,-2000.0,0.00014999,2]
[424707925,1781068243000,-500.0,0.00014999,2]
[424707923,1781068243000,-500.0,0.00014999,2]
[424707922,1781068243000,-500.0,0.00014999,2]
[424707928,1781068243000,-500.0,0.00014999,2]
[424707931,1781068243000,-500.0,0.00014999,2]
[424707930,1781068243000,-500.0,0.00014999,2]
[424707932,1781068243000,-500.0,0.00014999,2]
[424707936,1781068243000,-500.0,0.00014999,2]
[424707919,1781068243000,-500.0,0.00014999,2]
[424707933,1781068243000,-500.0,0.00014999,2]
[424707934,1781068243000,-500.0,0.00014999,2]
[424707935,1781068243000,-500.0,0.00014999,2]
[424707938,1781068243000,-500.0,0.00014999,2]
[424707940,1781068243000,-500.0,0.00014999,2]
[424707942,1781068243000,-500.0,0.00014999,2]
[424707941,1781068243000,-500.0,0.00014999,2]
[424707939,1781068243000,-500.0,0.00014999,2]
[424707943,1781068243000,-500.0,0.00014999,2]
[424707945,1781068243000,-500.0,0.00014999,2]
[424707946,1781068243000,-500.0,0.00014999,2]
[424707944,1781068243000,-500.0,0.00014999,2]
[424707887,1781068243000,-640.46,0.00014999,2]
[424707937,1781068243000,-500.0,0.00014999,2]
[424707921,1781068243000,-500.0,0.00014999,2]
[424707929,1781068243000,-500.0,0.00014999,2]
[424707918,1781068243000,-500.0,0.00014999,2]
[424707917,1781068243000,-500.0,0.00014999,2]
[424707892,1781068243000,-640.56798355,0.00014999,2]
[424707890,1781068243000,-640.46,0.00014999,2]
[424707895,1781068243000,-527.2025556,0.00014999,2]
[424707903,1781068243000,-500.0,0.00014999,2]
[424707904,1781068243000,-500.0,0.00014999,2]
[424707894,1781068243000,-500.0,0.00014999,2]
[424707891,1781068243000,-640.46,0.00014999,2]
[424707897,1781068243000,-695.44,0.00014999,2]
[424707898,1781068243000,-695.44,0.00014999,2]
[424707899,1781068243000,-695.44,0.00014999,2]
[424707902,1781068243000,-500.0,0.00014999,2]
[424707901,1781068243000,-695.63456704,0.00014999,2]
[424707896,1781068243000,-630.39633207,0.00014999,2]
[424707905,1781068243000,-500.0,0.00014999,2]
[424707900,1781068243000,-695.44,0.00014999,2]
[424707916,1781068243000,-500.0,0.00014999,2]
[424707907,1781068243000,-500.0,0.00014999,2]
[424707914,1781068243000,-500.0,0.00014999,2]
[424707910,1781068243000,-500.0,0.00014999,2]
[424707915,1781068243000,-500.0,0.00014999,2]
[424707906,1781068243000,-500.0,0.00014999,2]
[424707912,1781068243000,-500.0,0.00014999,2]
[424707909,1781068243000,-500.0,0.00014999,2]
[424707913,1781068243000,-500.0,0.00014999,2]
[424707908,1781068243000,-500.0,0.00014999,2]
[424707911,1781068243000,-500.0,0.00014999,2]
[424707990,1781068244000,-188.44786785,0.00015,2]
[424708000,1781068244000,-295.466994,0.00015068,2]
[424707987,1781068244000,-447.0,0.00015,2]
[424707985,1781068244000,-428.95807706,0.00015,2]
[424707988,1781068244000,-452.0,0.00015,2]
[424707977,1781068244000,-500.0,0.00014999,2]
[424707986,1781068244000,-351.86586003,0.00015,2]
[424707981,1781068244000,-500.0,0.00014999,2]
[424707982,1781068244000,-500.0,0.00014999,2]
[424707983,1781068244000,-500.0,0.00014999,2]
[424707984,1781068244000,-5880911.9394149,0.00015,2]
[424707978,1781068244000,-500.0,0.00014999,2]
[424708002,1781068244000,-295.466994,0.00015068,2]
[424708004,1781068244000,-295.466994,0.00015068,2]
[424707989,1781068244000,-172.2,0.00015,2]
[424707991,1781068244000,-151.0,0.00015,2]
[424707994,1781068244000,-368.0,0.00015,2]
[424707996,1781068244000,-300.0,0.00015,3]
[424707993,1781068244000,-159.04,0.00015,3]
[424707999,1781068244000,-295.466994,0.00015068,2]
[424707992,1781068244000,-151.0,0.00015,2]
[424707995,1781068244000,-151.0,0.00015,2]
[424707998,1781068244000,-8701.7564667,0.00015068,2]
[424707997,1781068244000,-320.50400124,0.00015049,10]
[424708003,1781068244000,-295.466994,0.00015068,2]
[424707979,1781068244000,-500.0,0.00014999,2]
[424708001,1781068244000,-295.466994,0.00015068,2]
[424707976,1781068244000,-500.0,0.00014999,2]
[424707950,1781068244000,-500.0,0.00014999,2]
[424707973,1781068244000,-500.0,0.00014999,2]
[424707949,1781068244000,-500.0,0.00014999,2]
[424708005,1781068244000,-295.466994,0.00015068,2]
[424707951,1781068244000,-500.0,0.00014999,2]
[424707948,1781068244000,-500.0,0.00014999,2]
[424707947,1781068244000,-500.0,0.00014999,2]
[424707952,1781068244000,-500.0,0.00014999,2]
[424707957,1781068244000,-500.0,0.00014999,2]
[424707960,1781068244000,-500.0,0.00014999,2]
[424707959,1781068244000,-500.0,0.00014999,2]
[424707955,1781068244000,-500.0,0.00014999,2]
[424707954,1781068244000,-500.0,0.00014999,2]
[424707958,1781068244000,-500.0,0.00014999,2]
[424707956,1781068244000,-500.0,0.00014999,2]
[424707962,1781068244000,-500.0,0.00014999,2]
[424707961,1781068244000,-500.0,0.00014999,2]
[424707975,1781068244000,-500.0,0.00014999,2]
[424707964,1781068244000,-500.0,0.00014999,2]
[424707966,1781068244000,-500.0,0.00014999,2]
[424707974,1781068244000,-500.0,0.00014999,2]
[424707963,1781068244000,-500.0,0.00014999,2]
[424707969,1781068244000,-500.0,0.00014999,2]
[424707967,1781068244000,-500.0,0.00014999,2]
[424707970,1781068244000,-500.0,0.00014999,2]
[424707968,1781068244000,-500.0,0.00014999,2]
[424707965,1781068244000,-500.0,0.00014999,2]
[424707971,1781068244000,-500.0,0.00014999,2]
[424707972,1781068244000,-500.0,0.00014999,2]
[424707980,1781068244000,-500.0,0.00014999,2]
[424708011,1781068244000,-10000.0,0.00015083,2]
[424707953,1781068244000,-500.0,0.00014999,2]
[424708013,1781068244000,-10491.24301786,0.00015247,2]
[424708042,1781068244000,-994.889303,0.00016438,2]
[424708041,1781068244000,-994.889303,0.00016438,2]
[424708043,1781068244000,-994.889303,0.00016438,2]
[424708039,1781068244000,-355.432168,0.00016438,2]
[424708048,1781068244000,-994.889303,0.00016438,2]
[424708046,1781068244000,-994.889303,0.00016438,2]
[424708045,1781068244000,-994.889303,0.00016438,2]
[424708044,1781068244000,-994.889303,0.00016438,2]
[424708047,1781068244000,-994.889303,0.00016438,2]
[424708049,1781068244000,-994.889303,0.00016438,2]
[424708050,1781068244000,-994.889303,0.00016438,2]
[424708060,1781068244000,-2000.0,0.00016908,2]
[424708056,1781068244000,-152.0,0.00016573,2]
[424708054,1781068244000,-203.66,0.0001652,2]
[424708059,1781068244000,-158.58,0.00016767,2]
[424708053,1781068244000,-152.03095866,0.00016461,2]
[424708057,1781068244000,-152.0,0.00016573,2]
[424708061,1781068244000,-500.0,0.00016996,2]
[424708051,1781068244000,-994.889303,0.00016438,2]
[424708052,1781068244000,-994.889303,0.00016438,2]
[424708058,1781068244000,-152.0,0.00016573,2]
[424708055,1781068244000,-1613.0535,0.00016562,2]
[424708063,1781068244000,-1672.7364795,0.0001711,2]
[424708066,1781068244000,-160.25200062,0.00017241,10]
[424708064,1781068244000,-203.66,0.00017156,2]
[424708065,1781068244000,-2000.0,0.00017226,2]
[424708010,1781068244000,-295.466994,0.00015068,2]
[424708040,1781068244000,-151.0,0.00016438,2]
[424708036,1781068244000,-355.432168,0.00016438,2]
[424708062,1781068244000,-152.0,0.00017079,2]
[424708037,1781068244000,-355.432168,0.00016438,2]
[424708035,1781068244000,-486.9,0.00016438,2]
[424708014,1781068244000,-203.66,0.00015249,2]
[424708008,1781068244000,-295.466994,0.00015068,2]
[424708006,1781068244000,-295.466994,0.00015068,2]
[424708012,1781068244000,-1450.29274445,0.00015106,2]
[424708009,1781068244000,-295.466994,0.00015068,2]
[424708016,1781068244000,-158.59,0.00015276,2]
[424708015,1781068244000,-1609.82798697,0.00015264,2]
[424708018,1781068244000,-255.82010105,0.00015338,2]
[424708017,1781068244000,-1450.29274445,0.00015308,2]
[424708026,1781068244000,-203.66,0.00015885,2]
[424708019,1781068244000,-1500.0,0.00015466,2]
[424708025,1781068244000,-320.50400124,0.00015871,10]
[424708007,1781068244000,-295.466994,0.00015068,2]
[424708024,1781068244000,-152.0,0.00015756,2]
[424708023,1781068244000,-152.0,0.00015726,2]
[424708028,1781068244000,-160.0,0.00016,14]
[424708033,1781068244000,-1624.59,0.00016219,2]
[424708032,1781068244000,-1464.85,0.00016218,2]
[424708029,1781068244000,-300.0,0.00016,2]
[424708034,1781068244000,-199.5,0.00016421,2]
[424708031,1781068244000,-225.24,0.00016192,2]
[424708021,1781068244000,-151.0,0.00015562,2]
[424708038,1781068244000,-355.432168,0.00016438,2]
[424708020,1781068244000,-2000.0,0.00015503,2]
[424708022,1781068244000,-170.2425974,0.00015563,2]
[424708030,1781068244000,-1555.5,0.00016014,2]
[424708027,1781068244000,-736.0,0.00015967,2]
[424708090,1781068245000,-151.0,0.00019178,2]
[424708096,1781068245000,-214.986368,0.00019178,2]
[424708095,1781068245000,-151.0,0.00019178,2]
[424708098,1781068245000,-225.24,0.0001943,2]
[424708091,1781068245000,-151.0,0.00019178,2]
[424708100,1781068245000,-2000.0,0.00019711,2]
[424708102,1781068245000,-500.0,0.000198,2]
[424708106,1781068245000,-6075.0,0.00019994,2]
[424708101,1781068245000,-322.80911841,0.00019755,2]
[424708094,1781068245000,-151.0,0.00019178,2]
[424708108,1781068245000,-420.62659707,0.00019999,2]
[424708107,1781068245000,-933.0,0.00019994,2]
[424708103,1781068245000,-160.0,0.000198,5]
[424708104,1781068245000,-2005.9555727,0.0001985,2]
[424708105,1781068245000,-308.85698785,0.00019867,2]
[424708110,1781068245000,-500.0,0.00019999,2]
[424708120,1781068245000,-422.29993139,0.00019999,2]
[424708109,1781068245000,-338.17143394,0.00019999,2]
[424708113,1781068245000,-500.0,0.00019999,2]
[424708089,1781068245000,-151.0,0.00019178,2]
[424708111,1781068245000,-312.12310303,0.00019999,2]
[424708099,1781068245000,-159.0,0.000196,4]
[424708088,1781068245000,-151.0,0.00019178,2]
[424708083,1781068245000,-814.06941199,0.00019,2]
[424708092,1781068245000,-151.0,0.00019178,2]
[424708112,1781068245000,-500.0,0.00019999,2]
[424708073,1781068245000,-1609.82798697,0.00018232,2]
[424708067,1781068245000,-1252.0,0.00017368,2]
[424708069,1781068245000,-1464.85,0.00017693,2]
[424708068,1781068245000,-1734.62772924,0.00017658,2]
[424708072,1781068245000,-1798.80895522,0.00018206,2]
[424708071,1781068245000,-350.0,0.00018,2]
[424708070,1781068245000,-225.24,0.00017811,2]
[424708080,1781068245000,-2000.0,0.00018948,2]
[424708079,1781068245000,-804.0,0.00018906,2]
[424708086,1781068245000,-151.0,0.00019178,2]
[424708075,1781068245000,-5734.03,0.00018533,2]
[424708076,1781068245000,-150.99,0.00018533,2]
[424708082,1781068245000,-4687.22806683,0.00019,2]
[424708081,1781068245000,-15603.01381914,0.00019,2]
[424708074,1781068245000,-486.9,0.0001841,2]
[424708077,1781068245000,-9999.99,0.00018533,2]
[424708085,1781068245000,-151.0,0.00019178,2]
[424708084,1781068245000,-346370.9277151,0.00019,2]
[424708087,1781068245000,-151.0,0.00019178,2]
[424708097,1781068245000,-1934.38338736,0.00019302,2]
[424708093,1781068245000,-151.0,0.00019178,2]
[424708078,1781068245000,-1865.36488656,0.00018754,2]
[424708115,1781068245000,-379.29247825,0.00019999,2]
[424708118,1781068245000,-500.0,0.00019999,2]
[424708119,1781068245000,-500.0,0.00019999,2]
[424708144,1781068245000,-354.0,0.0002,2]
[424708146,1781068245000,-1897.0,0.0002,2]
[424708145,1781068245000,-1099.0,0.0002,2]
[424708149,1781068245000,-3556.0,0.00020263,2]
[424708148,1781068245000,-150.0,0.00020263,2]
[424708147,1781068245000,-150.0,0.00020263,2]
[424708150,1781068245000,-382.0,0.00020263,2]
[424708153,1781068245000,-172.2,0.000203,2]
[424708154,1781068245000,-486.9,0.00020381,2]
[424708155,1781068245000,-151.0,0.00020398,2]
[424708157,1781068245000,-151.0,0.00020398,2]
[424708156,1781068245000,-151.0,0.00020398,2]
[424708162,1781068245000,-151.0,0.00020398,2]
[424708160,1781068245000,-151.0,0.00020398,2]
[424708159,1781068245000,-151.0,0.00020398,2]
[424708161,1781068245000,-151.0,0.00020398,2]
[424708158,1781068245000,-151.0,0.00020398,2]
[424708163,1781068245000,-151.0,0.00020398,2]
[424708165,1781068245000,-2080.17592889,0.00020398,2]
[424708164,1781068245000,-151.0,0.00020398,2]
[424708117,1781068245000,-500.0,0.00019999,2]
[424708142,1781068245000,-371.0,0.0002,2]
[424708143,1781068245000,-468.0,0.0002,2]
[424708152,1781068245000,-1228.524,0.00020263,2]
[424708140,1781068245000,-12945.1,0.0002,2]
[424708114,1781068245000,-500.0,0.00019999,2]
[424708151,1781068245000,-1274.0,0.00020263,2]
[424708116,1781068245000,-500.0,0.00019999,2]
[424708121,1781068245000,-500.0,0.00019999,2]
[424708122,1781068245000,-500.0,0.00019999,2]
[424708125,1781068245000,-157.984708,0.0002,2]
[424708123,1781068245000,-500.0,0.00019999,2]
[424708127,1781068245000,-283.0,0.0002,2]
[424708126,1781068245000,-334.0,0.0002,2]
[424708130,1781068245000,-314.0,0.0002,2]
[424708124,1781068245000,-2000.0,0.0002,7]
[424708129,1781068245000,-396.0,0.0002,2]
[424708131,1781068245000,-1655.0,0.0002,2]
[424708132,1781068245000,-367.0,0.0002,2]
[424708135,1781068245000,-400.0,0.0002,2]
[424708134,1781068245000,-172.0,0.0002,2]
[424708136,1781068245000,-300.0,0.0002,2]
[424708133,1781068245000,-633.0,0.0002,2]
[424708139,1781068245000,-12945.1,0.0002,2]
[424708137,1781068245000,-12945.1,0.0002,2]
[424708128,1781068245000,-1011.0,0.0002,2]
[424708138,1781068245000,-12945.1,0.0002,2]
[424708141,1781068245000,-12945.14,0.0002,2]
[424708193,1781068246000,-500.0,0.00020398,2]
[424708201,1781068246000,-1125.0,0.00020808,2]
[424708199,1781068246000,-171.61969194,0.0002058,2]
[424708200,1781068246000,-2000.0,0.00020671,2]
[424708202,1781068246000,-2157.14243826,0.00020946,2]
[424708195,1781068246000,-500.0,0.00020398,2]
[424708196,1781068246000,-500.0,0.00020398,2]
[424708194,1781068246000,-500.0,0.00020398,2]
[424708203,1781068246000,-159.0,0.00021,5]
[424708198,1781068246000,-1943.88,0.00020561,2]
[424708204,1781068246000,-240.0,0.00021,2]
[424708216,1781068246000,-354.0,0.00021,2]
[424708211,1781068246000,-367.0,0.00021,2]
[424708205,1781068246000,-334.0,0.00021,2]
[424708207,1781068246000,-1011.0,0.00021,2]
[424708209,1781068246000,-314.0,0.00021,2]
[424708210,1781068246000,-1655.0,0.00021,2]
[424708208,1781068246000,-396.0,0.00021,2]
[424708212,1781068246000,-633.0,0.00021,2]
[424708213,1781068246000,-172.0,0.00021,2]
[424708215,1781068246000,-468.0,0.00021,2]
[424708224,1781068246000,-5000.0,0.00021918,2]
[424708197,1781068246000,-500.0,0.00020398,2]
[424708206,1781068246000,-283.0,0.00021,2]
[424708188,1781068246000,-151.0,0.00020398,2]
[424708169,1781068246000,-151.0,0.00020398,2]
[424708190,1781068246000,-151.0,0.00020398,2]
[424708172,1781068246000,-151.0,0.00020398,2]
[424708167,1781068246000,-151.0,0.00020398,2]
[424708171,1781068246000,-500.0,0.00020398,2]
[424708170,1781068246000,-151.0,0.00020398,2]
[424708166,1781068246000,-151.0,0.00020398,2]
[424708168,1781068246000,-500.0,0.00020398,2]
[424708173,1781068246000,-151.0,0.00020398,2]
[424708175,1781068246000,-151.0,0.00020398,2]
[424708174,1781068246000,-500.0,0.00020398,2]
[424708177,1781068246000,-500.0,0.00020398,2]
[424708176,1781068246000,-151.0,0.00020398,2]
[424708178,1781068246000,-151.0,0.00020398,2]
[424708179,1781068246000,-151.0,0.00020398,2]
[424708181,1781068246000,-500.0,0.00020398,2]
[424708180,1781068246000,-151.0,0.00020398,2]
[424708182,1781068246000,-151.0,0.00020398,2]
[424708184,1781068246000,-151.0,0.00020398,2]
[424708218,1781068246000,-1897.0,0.00021,2]
[424708185,1781068246000,-151.0,0.00020398,2]
[424708187,1781068246000,-151.0,0.00020398,2]
[424708191,1781068246000,-151.0,0.00020398,2]
[424708189,1781068246000,-151.0,0.00020398,2]
[424708192,1781068246000,-500.0,0.00020398,2]
[424708186,1781068246000,-151.0,0.00020398,2]
[424708214,1781068246000,-371.0,0.00021,2]
[424708183,1781068246000,-151.0,0.00020398,2]
[424708221,1781068246000,-157.984708,0.00021333,2]
[424708250,1781068246000,-6075.0,0.00022994,2]
[424708257,1781068246000,-1655.0,0.00023,2]
[424708247,1781068246000,-2405.55389863,0.0002259,2]
[424708249,1781068246000,-417.83533928,0.00022949,2]
[424708252,1781068246000,-334.0,0.00023,2]
[424708253,1781068246000,-283.0,0.00023,2]
[424708255,1781068246000,-396.0,0.00023,2]
[424708251,1781068246000,-933.0,0.00022994,2]
[424708254,1781068246000,-1011.0,0.00023,2]
[424708258,1781068246000,-367.0,0.00023,2]
[424708259,1781068246000,-633.0,0.00023,2]
[424708256,1781068246000,-314.0,0.00023,2]
[424708266,1781068246000,-1411.90921376,0.00023042,2]
[424708261,1781068246000,-371.0,0.00023,2]
[424708269,1781068246000,-2494.55939288,0.00023138,2]
[424708270,1781068246000,-150.0,0.00023263,2]
[424708265,1781068246000,-1897.0,0.00023,2]
[424708263,1781068246000,-354.0,0.00023,2]
[424708262,1781068246000,-468.0,0.00023,2]
[424708268,1781068246000,-824.86216119,0.00023112,2]
[424708267,1781068246000,-252.32499435,0.00023111,2]
[424708271,1781068246000,-150.0,0.00023263,2]
[424708272,1781068246000,-3556.0,0.00023263,2]
[424708222,1781068246000,-2236.95670847,0.00021494,2]
[424708264,1781068246000,-1099.0,0.00023,2]
[424708248,1781068246000,-157.984708,0.00022667,2]
[424708260,1781068246000,-172.0,0.00023,2]
[424708241,1781068246000,-654.04,0.00022,2]
[424708245,1781068246000,-1943.88,0.00022194,2]
[424708217,1781068246000,-1099.0,0.00021,2]
[424708223,1781068246000,-408.00355578,0.000216,2]
[424708220,1781068246000,-158.58,0.00021205,2]
[424708219,1781068246000,-1609.82798697,0.00021199,2]
[424708235,1781068246000,-633.0,0.00022,2]
[424708226,1781068246000,-151.0,0.00021918,2]
[424708225,1781068246000,-151.0,0.00021918,2]
[424708230,1781068246000,-1011.0,0.00022,2]
[424708227,1781068246000,-3553.43,0.00022,10]
[424708229,1781068246000,-283.0,0.00022,2]
[424708228,1781068246000,-334.0,0.00022,2]
[424708232,1781068246000,-314.0,0.00022,2]
[424708240,1781068246000,-354.0,0.00022,2]
[424708243,1781068246000,-1897.0,0.00022,2]
[424708231,1781068246000,-396.0,0.00022,2]
[424708244,1781068246000,-2319.72410669,0.00022042,2]
[424708239,1781068246000,-468.0,0.00022,2]
[424708246,1781068246000,-486.9,0.00022353,2]
[424708242,1781068246000,-1099.0,0.00022,2]
[424708236,1781068246000,-172.0,0.00022,2]
[424708237,1781068246000,-450.0,0.00022,2]
[424708233,1781068246000,-1655.0,0.00022,2]
[424708234,1781068246000,-367.0,0.00022,2]
[424708238,1781068246000,-371.0,0.00022,2]
[424708306,1781068247000,-151.0,0.00023889,2]
[424708308,1781068247000,-151.0,0.00023889,2]
[424708310,1781068247000,-152.0,0.00023889,2]
[424708309,1781068247000,-1481.2378076,0.00023889,2]
[424708318,1781068247000,-1651.81367706,0.00023889,2]
[424708302,1781068247000,-1377.42282658,0.00023889,2]
[424708307,1781068247000,-151.0,0.00023889,2]
[424708298,1781068247000,-151.0,0.00023889,2]
[424708303,1781068247000,-151.0,0.00023889,2]
[424708313,1781068247000,-151.0,0.00023889,2]
[424708317,1781068247000,-152.0,0.00023889,2]